[Event "CIS Master Groups 2024"]
[Site "Vasto"]
[Date "2024.04.09"]
[Round "3.7"]
[White "Borgo, Giulio"]
[Black "Pitica, Silviu Valentin"]
[Result "1-0"]
[ECO "C77"]
[WhiteElo "2309"]
[BlackElo "2228"]
[Annotator "RC"]
[PlyCount "257"]
[EventDate "2024.04.07"]
[EventType "team-tourn"]
[EventCountry "ITA"]
[SourceTitle "playchess.com"]
[Source "ChessBase"]
[SourceQuality "1"]
[TimeControl "40/5400+30:900+30"]

1. e4 {[%emt 0:00:05]} e5 {[%emt 0:01:41]} 2. Nf3 {[%emt 0:01:55]} Nc6 {[%emt 0:00:07]} 3. Bb5 {[%emt 0:01:42]} a6 {[%emt 0:00:15]} 4. Ba4 {[%emt 0:00:14]} Nf6 {[%emt 0:00:07]} 5. Nc3 {[%emt 0:00:15]} b5 {[%emt 0:00:51]} 6. Bb3 {[%emt 0:00:12]} Be7 {[%emt 0:02:52]} 7. d3 {[%emt 0:02:27]} O-O {[%emt 0:06:59]} 8. a4 {[%emt 0:01:34]} Rb8 {[%emt 0:04:30]} 9. axb5 {[%emt 0:14:48]} axb5 {[%emt 0:00:33]} 10. Bg5 {[%emt 0:00:32]} d6 {[%emt 0:04:19]} 11. Bxf6 {[%emt 0:04:58]} Bxf6 {[%emt 0:00:32]} 12. Nd5 {[%emt 0:00:11]} Be6 {[%emt 0:04:59]} 13. c3 {[%emt 0:00:52]} Bxd5 {[%emt 0:05:29]} 14. Bxd5 {[%emt 0:04:07]} Ne7 {[%emt 0:01:27]} 15. Ba2 {[%emt 0:05:17]} b4 {[%emt 0:08:12]} 16. O-O {[%emt 0:01:12]} bxc3 {[%emt 0:00:54]} 17. bxc3 {[%emt 0:00:10]} Qd7 {[%emt 0:04:33]} 18. g3 {[%emt 0:18:08]} Qc6 {[%emt 0:01:04]} 19. Qe2 {[%emt 0:08:23]} Rb6 {[%emt 0:06:57]} 20. Rfb1 {[%emt 0:06:05]} Rfb8 {[%emt 0:02:46]} 21. Rxb6 {[%emt 0:00:13]} Qxb6 {[%emt 0:01:29]} 22. Bc4 {[%emt 0:02:10]} g6 {[%emt 0:03:08]} 23. Qa2 {[%emt 0:02:39]} Rf8 {[%emt 0:03:39]} 24. h4 {[%emt 0:10:04]} h6 {[%emt 0:06:27]} 25. Kg2 {[%emt 0:02:33]} Qc6 {[%emt 0:02:29]} 26. Qb3 {[%emt 0:08:04]} Nc8 {[%emt 0:10:50]} 27. Qb5 {[%emt 0:02:28]} Qxb5 {[%emt 0:02:05]} 28. Bxb5 {[%emt 0:00:02]} Kg7 {[%emt 0:02:05]} 29. Nd2 {[%emt 0:01:46]} Nb6 {[%emt 0:02:07]} 30. Bc6 {[%emt 0:00:28]} Bd8 {[%emt 0:00:45]} 31. Nf3 {[%emt 0:01:36]} f5 {[%emt 0:01:00]} 32. Ra2 {[%emt 0:00:40]} Rf7 {[%emt 0:01:10]} 33. Ra1 {[%emt 0:00:37]} Rf6 {[%emt 0:02:09]} 34. Nd2 {[%emt 0:00:04]} Rf7 {[%emt 0:00:53]} 35. Nb3 {[%emt 0:00:15]} Bf6 {[%emt 0:02:24]} 36. Ra7 {[%emt 0:00:17]} Bd8 {[%emt 0:03:21]} 37. Na5 {[%emt 0:00:19]} Bf6 {[%emt 0:01:51]} 38. Rb7 {[%emt 0:00:52]} Bd8 {[%emt 0:01:07]} 39. c4 {[%emt 0:00:23]} Bf6 {[%emt 0:01:16]} 40. Bd5 {[%emt 0:00:49]} Nxd5 {[%emt 0:00:27]} 41. cxd5 {[%emt 0:15:38]} h5 {[%emt 0:15:37]} 42. Nc6 {[%emt 0:00:42]} Kh6 {[%emt 0:00:00]} 43. Na7 {[%emt 0:00:00]} g5 {[%emt 0:00:00]} 44. Nb5 {[%emt 0:00:00]} Rg7 {[%emt 0:00:00]} 45. hxg5+ {[%emt 0:00:00]} Kxg5 {[%emt 0:00:00]} 46. Nxc7 {[%emt 0:00:42]} Kh6 {[%emt 0:01:59]} 47. Ra7 {[%emt 0:00:05]} f4 {[%emt 0:00:44]} 48. Nb5 {[%emt 0:00:39]} Rxa7 {[%emt 0:00:18]} 49. Nxa7 {[%emt 0:00:07]} fxg3 {[%emt 0:00:18]} 50. fxg3 {[%emt 0:01:32]} Be7 {[%emt 0:00:14]} 51. Nc8 {[%emt 0:01:21]} Bf8 {[%emt 0:00:09]} 52. Nb6 {[%emt 0:00:37]} Kg5 {[%emt 0:01:01]} 53. Kh3 {[%emt 0:00:20]} Kg6 {[%emt 0:01:15]} 54. Nc4 {[%emt 0:00:08]} Kg5 {[%emt 0:00:34]} 55. Ne3 {[%emt 0:00:26]} Kg6 {[%emt 0:00:30]} 56. Nf5 {[%emt 0:00:24]} Kg5 {[%emt 0:00:13]} 57. Kh2 {[%emt 0:01:08]} Kg6 {[%emt 0:00:32]} 58. Kg1 {[%emt 0:00:20]} Kf6 {[%emt 0:00:25]} 59. Kf2 {[%emt 0:00:37]} Kg6 {[%emt 0:00:23]} 60. Ke2 {[%emt 0:00:41]} Kf6 {[%emt 0:00:14]} 61. Kf3 {[%emt 0:00:29]} Kg5 {[%emt 0:00:25]} 62. Ne3 {[%emt 0:00:31]} Be7 {[%emt 0:00:23]} 63. Kg2 {[%emt 0:00:34]} Kg6 {[%emt 0:00:43]} 64. Kh3 {[%emt 0:00:13]} Kg5 {[%emt 0:00:12]} 65. Nf5 {[%emt 0:00:36]} Bf8 {[%emt 0:00:05]} 66. Nh4 {[%emt 0:00:09]} Be7 {[%emt 0:00:19]} 67. Nf3+ {[%emt 0:00:10]} Kg6 {[%emt 0:00:55]} 68. g4 {[%emt 0:00:29]} Kh6 {[%emt 0:01:00]} 69. Nh4 {[%emt 0:01:09]} Kg5 {[%emt 0:00:42]} 70. gxh5 {[%emt 0:00:27]} Kxh5 {[%emt 0:00:19]} 71. Nf5 {[%emt 0:00:19]} Bf8 {[%emt 0:00:08]} 72. Kg3 {[%emt 0:00:08]} Kg5 {[%emt 0:00:09]} 73. Kf3 {[%emt 0:00:24]} Kh5 {[%emt 0:00:18]} 74. Ke3 {[%emt 0:00:52]} Kg4 {[%emt 0:00:45]} 75. Kd2 {[%emt 0:00:54]} Kf3 {[%emt 0:00:57]} 76. Nh4+ {[%emt 0:00:37]} Kg4 {[%emt 0:00:01]} 77. Ng6 {[%emt 0:00:17]} Bh6+ {[%emt 0:00:28]} 78. Kc3 {[%emt 0:00:24]} Kg5 {[%emt 0:01:14]} 79. Ne7 {[%emt 0:00:26]} Bf8 {[%emt 0:00:21]} 80. Nc6 {[%emt 0:00:58]} Kf4 {[%emt 0:00:44]} 81. Nd8 {[%emt 0:00:22]} Ke3 {[%emt 0:00:30]} 82. Ne6 {[%emt 0:00:30]} Be7 {[%emt 0:00:23]} 83. Kc4 {[%emt 0:00:27]} Bf6 {[%emt 0:00:38]} 84. Nc7 {[%emt 0:00:40]} Bd8 {[%emt 0:00:31]} 85. Na6 {[%emt 0:00:26]} Be7 {[%emt 0:00:44]} 86. Nb4 {[%emt 0:00:30]} Bf8 {[%emt 0:00:40]} 87. Nc2+ {[%emt 0:00:29]} Kd2 {[%emt 0:00:01]} 88. Na3 {[%emt 0:00:04]} Ke3 {[%emt 0:00:31]} 89. Kc3 {[%emt 0:00:07]} Be7 {[%emt 0:00:22]} 90. Nc4+ {[%emt 0:00:04]} Kf4 {[%emt 0:00:07]} 91. Kb4 {[%emt 0:01:42]} Kf3 {[%emt 0:00:54]} 92. Nb2 {[%emt 0:00:35]} Ke3 {[%emt 0:00:22]} 93. Kc4 {[%emt 0:00:18]} Bf8 {[%emt 0:00:57]} 94. Nd1+ {[%emt 0:00:25]} Ke2 {[%emt 0:00:24]} 95. Nc3+ {[%emt 0:00:28]} Ke3 {[%emt 0:00:10]} 96. Na4 {[%emt 0:00:27]} Be7 {[%emt 0:00:20]} 97. Nb6 {[%emt 0:00:38]} Bf8 {[%emt 0:00:19]} 98. Kc3 {[%emt 0:00:13]} Be7 {[%emt 0:00:32]} 99. Nc4+ {[%emt 0:00:14]} Ke2 {[%emt 0:01:22]} 100. d4 {[%emt 0:00:19]} exd4+ {[%emt 0:00:10]} 101. Kxd4 {[%emt 0:00:28]} Bf6+ {[%emt 0:00:50]} 102. e5 {[%emt 0:00:14]} dxe5+ {[%emt 0:00:08]} 103. Nxe5 {[%emt 0:00:57]} Kd2 {[%emt 0:01:05]} 104. d6 {[%emt 0:00:09]} Kc2 {[%emt 0:00:29]} 105. Kd5 {[%emt 0:00:38]} Bd8 {[%emt 0:00:30]} 106. Nc6 {[%emt 0:01:08]} Bb6 {[%emt 0:00:14]} 107. Kc4 {[%emt 0:00:24]} Kd2 {[%emt 0:00:45]} 108. Nb4 {[%emt 0:01:03]} Bd8 {[%emt 0:00:28]} 109. Nc6 {[%emt 0:00:08]} Bb6 {[%emt 0:00:24]} 110. Kd5 {[%emt 0:00:52]} Ke3 {[%emt 0:00:36]} 111. Ne5 {[%emt 0:00:23]} Kf4 {[%emt 0:00:26]} 112. Nc4 {[%emt 0:00:34]} Bd8 {[%emt 0:00:12]} 113. Ke6 {[%emt 0:00:18]} Ke4 {[%emt 0:00:40]} 114. Ne5 {[%emt 0:00:41]} Bb6 {[%emt 0:00:45]} 115. Nd7 {[%emt 0:00:30]} Bd8 {[%emt 0:00:31]} 116. Nb8 {[%emt 0:00:22]} Bb6 {[%emt 0:00:32]} 117. Nc6 {[%emt 0:00:10]} Kf4 {[%emt 0:00:26]} 118. Ne7 {[%emt 0:00:58]} Kg5 {[%emt 0:00:22]} 119. Nd5 {[%emt 0:00:21]} Ba5 {[%emt 0:00:37]} 120. Nc7 {[%emt 0:00:34]} Kg6 {[%emt 0:00:18]} 121. Nd5 {[%emt 0:00:40]} Kg7 {[%emt 0:00:14]} 122. Ke7 {[%emt 0:00:19]} Kg8 {[%emt 0:00:34]} 123. Ke8 {[%emt 0:00:34]} Kg7 {[%emt 0:00:12]} 124. Kd7 {[%emt 0:00:37]} Kf8 {[%emt 0:00:27]} 125. Kc8 {[%emt 0:00:07]} Bd2 {[%emt 0:01:10]} 126. Nf6 {[%emt 0:00:29]} Ba5 {[%emt 0:00:33]} 127. d7 {[%emt 0:00:36]} Ke7 {[%emt 0:00:40]} 128. Ne8 {[%emt 0:00:10]} Bb6 {[%emt 0:00:28]} 129. Nc7 {[%emt 0:00:06]} 1-0

[Event "CIS Master Groups 2024"]
[Site "Vasto"]
[Date "2024.04.09"]
[Round "3.8"]
[White "Tripodi, Enzo"]
[Black "Podetti, Davide"]
[Result "0-1"]
[ECO "C78"]
[WhiteElo "2152"]
[BlackElo "2280"]
[Annotator "RC"]
[PlyCount "116"]
[EventDate "2024.04.07"]
[EventType "team-tourn"]
[EventCountry "ITA"]
[SourceTitle "playchess.com"]
[Source "ChessBase"]
[SourceQuality "1"]
[TimeControl "40/5400+30:900+30"]

1. e4 {[%emt 0:03:04]} e5 {[%emt 0:00:29]} 2. Nf3 {[%emt 0:00:13]} Nc6 {[%emt 0:00:10]} 3. Bb5 {[%emt 0:00:07]} a6 {[%emt 0:00:22]} 4. Ba4 {[%emt 0:00:14]} Nf6 {[%emt 0:00:30]} 5. O-O {[%emt 0:00:31]} b5 {[%emt 0:01:05]} 6. Bb3 {[%emt 0:00:04]} Bc5 {[%emt 0:00:54]} 7. c3 {[%emt 0:01:43]} d6 {[%emt 0:00:22]} 8. d4 {[%emt 0:00:18]} Bb6 {[%emt 0:00:08]} 9. Be3 {[%emt 0:01:43]} O-O {[%emt 0:18:27]} 10. Nbd2 {[%emt 0:00:05]} h6 {[%emt 0:02:12]} 11. h3 {[%emt 0:03:23]} Re8 {[%emt 0:00:53]} 12. Re1 {[%emt 0:14:06]} Rb8 {[%emt 0:05:08]} 13. Bc2 {[%emt 0:15:53]} Bb7 {[%emt 0:07:57]} 14. a3 {[%emt 0:08:58]} Na7 {[%emt 0:19:44]} 15. dxe5 {[%emt 0:11:20]} Bxe3 {[%emt 0:04:20]} 16. Rxe3 {[%emt 0:03:50]} dxe5 {[%emt 0:00:05]} 17. b4 {[%emt 0:08:18]} Nc8 {[%emt 0:03:29]} 18. c4 {[%emt 0:03:05]} Na7 {[%emt 0:04:29]} 19. Qf1 {[%emt 0:03:06]} Nc6 {[%emt 0:01:59]} 20. Nb3 {[%emt 0:00:51]} Nd4 {[%emt 0:05:27]} 21. Nfxd4 {[%emt 0:07:38]} exd4 {[%emt 0:00:22]} 22. Rd3 {[%emt 0:00:51]} Nxe4 {[%emt 0:00:52]} 23. Rxd4 {[%emt 0:00:34]} Qg5 {[%emt 0:00:30]} 24. cxb5 {[%emt 0:04:15]} axb5 {[%emt 0:00:41]} 25. Re1 {[%emt 0:03:05]} Nd6 {[%emt 0:00:23]} 26. Rg4 {[%emt 0:00:19]} Rxe1 {[%emt 0:01:23]} 27. Qxe1 {[%emt 0:00:03]} Qf6 {[%emt 0:00:18]} 28. Rg3 {[%emt 0:02:25]} Nc4 {[%emt 0:02:28]} 29. Nc5 {[%emt 0:00:27]} Bc6 {[%emt 0:00:16]} 30. Qc3 {[%emt 0:02:19]} Qxc3 {[%emt 0:04:56]} 31. Rxc3 {[%emt 0:00:02]} Bd5 {[%emt 0:00:41]} 32. Na6 {[%emt 0:01:03]} Rb7 {[%emt 0:00:14]} 33. a4 {[%emt 0:01:58]} bxa4 {[%emt 0:05:41]} 34. Bxa4 {[%emt 0:00:07]} Nb2 {[%emt 0:02:55]} 35. Bc2 {[%emt 0:00:44]} Bc4 {[%emt 0:01:14]} 36. Re3 {[%emt 0:00:47]} g6 {[%emt 0:00:37]} 37. Nc5 {[%emt 0:00:46]} Rxb4 {[%emt 0:00:16]} 38. Nd7 {[%emt 0:00:18]} c6 {[%emt 0:01:45]} 39. Nf6+ {[%emt 0:00:21]} Kg7 {[%emt 0:00:10]} 40. Ne8+ {[%emt 0:00:25]} Kf8 {[%emt 0:00:27]} 41. Nd6 {[%emt 0:15:51]} Bd5 {[%emt 0:15:20]} 42. Re8+ {[%emt 0:00:00]} Kg7 {[%emt 0:00:00]} 43. Rc8 {[%emt 0:00:00]} Kf6 {[%emt 0:00:00]} 44. Rc7 {[%emt 0:00:00]} Ke6 {[%emt 0:00:00]} 45. Nxf7 {[%emt 0:00:00]} Nc4 {[%emt 0:00:00]} 46. Bxg6 {[%emt 0:00:00]} Kf6 {[%emt 0:00:00]} 47. Bh5 {[%emt 0:00:00]} Nd2 {[%emt 0:00:00]} 48. f4 {[%emt 0:00:58]} Rb1+ {[%emt 0:00:00]} 49. Kf2 {[%emt 0:00:07]} Ne4+ {[%emt 0:00:06]} 50. Ke3 {[%emt 0:00:30]} Ng3 {[%emt 0:00:38]} 51. Nxh6 {[%emt 0:00:38]} Rb3+ {[%emt 0:02:59]} 52. Kd4 {[%emt 0:02:08]} Nxh5 {[%emt 0:00:10]} 53. Ng4+ {[%emt 0:00:16]} Ke6 {[%emt 0:00:20]} 54. f5+ {[%emt 0:00:14]} Kd6 {[%emt 0:00:20]} 55. Rxc6+ {[%emt 0:02:16]} Bxc6 {[%emt 0:00:15]} 56. Ne3 {[%emt 0:00:15]} Bb5 {[%emt 0:00:32]} 57. g4 {[%emt 0:00:22]} Nf6 {[%emt 0:00:06]} 58. g5 {[%emt 0:00:29]} Rd3# {[%emt 0:00:05]} 0-1

[Event "CIS Master Groups 2024"]
[Site "Vasto"]
[Date "2024.04.09"]
[Round "3.9"]
[White "Lodici, Lorenzo"]
[Black "Ivanisevic, Ivan"]
[Result "1/2-1/2"]
[ECO "C27"]
[WhiteElo "2565"]
[BlackElo "2518"]
[Annotator "TA"]
[PlyCount "89"]
[EventDate "2024.04.07"]
[EventType "team-tourn"]
[EventCountry "ITA"]
[SourceTitle "playchess.com"]
[Source "ChessBase"]
[SourceQuality "1"]
[TimeControl "40/5400+30:900+30"]

{[%evp 9,89,3,37,-12,-2,-20,22,17,16,20,23,22,39,39,37,39,37,0,20,16,17,10,18,28,27,22,30,1,27,21,24,-30,0,0,0,-18,-4,0,0,0,0,-10,7,-30,9,0,0,0,0,0,0,-77,-30,-44,-22,-33,0,-8,0,0,23,20,27,21,23,20,52,0,0,0,0,0,0,0,0,0,0,0,0,0,0,0]} 1. e4 {[%emt 0:00:02]} e5 {[%emt 0:00:06]} 2. Bc4 {[%emt 0:00:50]} Nf6 {[%emt 0:00:29]} 3. d3 {[%emt 0:00:03]} Bc5 {[%emt 0:01:42]} 4. Nc3 {[%emt 0:00:15]} O-O {[%emt 0:01:20]} 5. Nf3 {[%emt 0:00:05]} c6 {[%emt 0:03:07]} 6. Bb3 {[%emt 0:05:00]} (6. Nxe5 $14 {is superior.} d6 7. Nf3) 6... d6 $11 {[%emt 0:05:02]} 7. Ne2 {[%emt 0:00:53]} Be6 {[%emt 0:06:29]} 8. Bxe6 {[%emt 0:02:59]} fxe6 {[%emt 0:00:05]} 9. Ng3 {[%emt 0:00:41]} Nbd7 {[%emt 0:00:28]} 10. c3 {[%emt 0:01:13]} b5 {[%emt 0:05:22]} 11. O-O {[%emt 0:07:02]} Bb6 {[%emt 0:00:23]} 12. d4 {[%emt 0:01:30]} exd4 {[%emt 0:14:59]} 13. Nxd4 {[%emt 0:01:39]} Qe8 {[%emt 0:02:52]} 14. Nxc6 {[%emt 0:05:59]} Nc5 {[%emt 0:03:39][%csl LRc6,LRe4]} 15. Nd4 {[%emt 0:02:27]} (15. Qxd6 $2 Nfxe4 16. Ne7+ (16. Nxe4 $2 Nxe4 17. Qe7 Qxc6 $19) 16... Kh8 $19) 15... Ncxe4 {[%emt 0:01:17]} 16. Nxe4 {[%emt 0:03:21]} Nxe4 {[%emt 0:00:07]} 17. Be3 {[%emt 0:00:04]} d5 {[%emt 0:06:29]} 18. Qg4 {[%emt 0:03:36]} Rf6 {[%emt 0:00:18]} 19. Rae1 {[%emt 0:01:38]} Qf7 {[%emt 0:04:34]} 20. f3 {[%emt 0:05:41]} (20. Qe2 $142) 20... Nd6 {[%emt 0:01:34]} 21. Nc6 {[%emt 0:02:18]} Qc7 {[%emt 0:06:49]} 22. Bxb6 {[%emt 0:03:18]} Qxb6+ {[%emt 0:00:30]} 23. Nd4 {[%emt 0:00:02][%cal Bc6d4,Bd4c2,Bc2b4,Bb4d3,Bd3e5][%mdl 32]} Re8 {[%emt 0:00:18] [#] Hoping for ...e5.} 24. Kh1 {[%emt 0:03:29]} e5 $36 {[%emt 0:04:14][%mdl 2048] Black is pushing.} 25. Nc2 {[%emt 0:02:48]} Nc4 {[%emt 0:01:01]} 26. Re2 {[%emt 0:01:30]} Rg6 {[%emt 0:05:56]} (26... e4 $5) 27. Qf5 {[%emt 0:05:11]} Qc5 {[%emt 0:08:15]} 28. Qd7 {[%emt 0:15:48]} Rf8 {[%emt 0:03:47][%cal Oa7a6]} 29. Nb4 {[%emt 0:02:38]} Nb6 {[%emt 0:01:25]} 30. Qh3 {[%emt 0:02:48]} (30. Qxa7 $11 e4 31. Ree1) 30... d4 {[%emt 0:03:00]} (30... Qc4 $17 31. Rfe1 e4 (31... a5 32. Nc2 $17)) 31. Rfe1 {[%emt 0:10:46]} dxc3 {[%emt 0:02:15]} 32. Nd3 {[%emt 0:00:19]} Qd6 {[%emt 0:00:42]} 33. Nxe5 {[%emt 0:00:17]} Re6 {[%emt 0:03:17]} 34. bxc3 {[%emt 0:04:10]} Nc4 {[%emt 0:00:55]} 35. Qg3 {[%emt 0:02:34]} Rfe8 {[%emt 0:01:10][%cal Re6e5]} 36. f4 {[%emt 0:00:36]} Qd5 {[%emt 0:00:57]} 37. h3 {[%emt 0:02:27]} Nxe5 {[%emt 0:00:15]} (37... a6 {feels hotter.} 38. Kh2 h6 39. a3 Qc5) 38. Rxe5 {[%emt 0:01:59]} (38. f5 $14 Rf6 (38... R6e7 $2 39. f6 $18) 39. Rxe5 Rxe5 40. Rxe5) 38... Rxe5 {[%emt 0:00:46] The position is equal.} 39. fxe5 {[%emt 0:01:29]} Qxa2 {[%emt 0:03:00][%mdl 4096] Endgame. KQR-KQR} 40. Qd3 {[%emt 0:00:26]} Qc4 {[%emt 0:00:41]} 41. Qd7 {[%emt 0:01:32]} Rxe5 {[%emt 0:08:39]} 42. Qd8+ {[%emt 0:02:36]} (42. Rxe5 $5 Qf1+ $8 (42... Qxc3 43. Re8#) 43. Kh2 Qf4+ 44. Kh1 Qf1+ (44... Qxe5 45. Qc8+ Kf7 46. Qd7+ Kf6 47. Qxa7 $11) 45. Kh2 Qf4+ 46. Kg1 Qxe5 47. Qxa7 $11) 42... Kf7 {[%emt 0:00:02]} 43. Qd7+ {[%emt 0:01:22]} (43. Rxe5 $5 Qf1+ $8 (43... Qxc3 44. Qe8+ Kf6 45. Qe6#) 44. Kh2 Qf4+ 45. Kh1 Qc1+ (45... Qxe5 46. Qd7+ Kf6 47. Qxa7 $11) 46. Kh2 Qf4+ (46... Qxc3 47. Qe8+ Kf6 48. Qe6#) 47. Kh1 Qxe5 48. Qd7+ Kf6 49. Qxa7 $11) 43... Kg8 {[%emt 0:00:08]} 44. Qd8+ {[%emt 0:00:04]} (44. Rxe5 $5 Qf1+ $8 (44... Qxc3 45. Re8#) 45. Kh2 Qf4+ 46. Kh1 Qf1+ (46... Qxe5 47. Qxa7 Qe1+ 48. Kh2 $11) 47. Kh2 Qf4+ 48. Kh1 Qf1+ $11 (48... Qxe5 49. Qxa7 Qe1+ 50. Kh2 $11)) 44... Kf7 {[%emt 0:00:06]} 45. Qd7+ {[%emt 0:01:17] Weighted Error Value: White=0.11 (very precise) /Black=0.12 (very precise) .  Mistake:       	White=3     	Black=1      Inaccurate:     	White=3     	Black=5      OK:         	White=18    	Black=13     Best:        	White=1     	Black=2} (45. Rxe5 $5 Qf1+ $8 (45... Qxc3 46. Qe8+ Kf6 47. Qe6#) 46. Kh2 Qf4+ 47. Kh1 Qxe5 48. Qd7+ Kf6 49. Qxa7 $11) 1/2-1/2

[Event "CIS Master Groups 2024"]
[Site "Vasto"]
[Date "2024.04.09"]
[Round "3.10"]
[White "Seresin, Francesco"]
[Black "Barp, Alberto"]
[Result "1/2-1/2"]
[ECO "E48"]
[WhiteElo "2336"]
[BlackElo "2470"]
[Annotator "TA"]
[PlyCount "82"]
[EventDate "2024.04.07"]
[EventType "team-tourn"]
[EventCountry "ITA"]
[SourceTitle "playchess.com"]
[Source "ChessBase"]
[SourceQuality "1"]
[TimeControl "40/5400+30:900+30"]

{[%evp 13,82,-4,0,-8,0,0,0,0,0,0,0,0,0,0,0,0,15,-18,0,-20,-15,-16,-17,-12,-10,-17,-7,-9,-10,-8,-6,-7,-7,-9,-10,-31,-31,-34,-34,-50,-20,-20,-18,-19,-11,-15,0,0,0,-16,-7,-9,0,0,0,-3,0,0,0,0,0,0,0,0,0,0,0,-8,0,0,1877]} 1. d4 {[%emt 0:02:57]} Nf6 {[%emt 0:01:47]} 2. c4 {[%emt 0:00:27]} e6 {[%emt 0:00:09]} 3. Nc3 {[%emt 0:02:10]} Bb4 {[%emt 0:01:31]} 4. e3 {[%emt 0:02:45]} O-O {[%emt 0:00:09]} 5. Bd3 {[%emt 0:00:05]} d5 {[%emt 0:01:29]} 6. cxd5 {[%emt 0:00:38]} exd5 {[%emt 0:00:06]} 7. Nge2 {[%emt 0:00:18]} Re8 {[%emt 0:03:14]} 8. Bd2 {[%emt 0:00:38]} Bf8 {[%emt 0:02:13]} 9. O-O {[%emt 0:02:41]} a5 {[%emt 0:03:03]} 10. Rc1 {[%emt 0:04:55]} Na6 {[%emt 0:01:05][%cal Bb8a6,Ba6b4,Bb4c6][%mdl 32]} 11. f3 {[%emt 0:04:28]} Nb4 {[%emt 0:14:11]} 12. Bb1 {[%emt 0:01:16]} c5 $1 {[%emt 0:00:07]} 13. dxc5 {[%emt 0:06:35]} Bxc5 {[%emt 0:00:40]} 14. Nd4 {[%emt 0:00:16]} Nc6 {[%emt 0:15:15]} 15. Nce2 {[%emt 0:19:12]} Qb6 {[%emt 0:05:43][%csl LRb2,LRd4]} 16. Qc2 {[%emt 0:02:41]} Bxd4 {[%emt 0:10:34]} 17. Nxd4 {[%emt 0:00:28]} Nxd4 {[%emt 0:00:08]} 18. exd4 {[%emt 0:00:18]} Qxd4+ {[%emt 0:00:36]} 19. Kh1 {[%emt 0:00:18] [#]} Bf5 $1 {[%emt 0:05:41]} 20. Qc3 {[%emt 0:04:24] White is weak on the light squares} Qxc3 {[%emt 0:01:18]} 21. Bxc3 {[%emt 0:02:08]} Bxb1 {[%emt 0:00:11]} 22. Rxb1 {[%emt 0:00:02]} Red8 {[%emt 0:06:49]} 23. Rbd1 {[%emt 0:01:26]} Ne8 {[%emt 0:01:15]} 24. Rd2 {[%emt 0:06:32]} f6 {[%emt 0:04:39]} 25. Rfd1 {[%emt 0:06:06]} Nc7 {[%emt 0:00:46]} 26. Kg1 {[%emt 0:00:44]} Kf7 {[%emt 0:08:14]} 27. Bd4 {[%emt 0:02:53] The position is equal.} Ra6 {[%emt 0:04:35]} 28. Bf2 {[%emt 0:01:53]} Rc6 {[%emt 0:00:53]} 29. Bg3 {[%emt 0:00:45]} Ke6 {[%emt 0:01:53]} 30. Re1+ {[%emt 0:00:58]} Kf7 {[%emt 0:00:00]} 31. Red1 {[%emt 0:00:09]} b6 {[%emt 0:00:09]} 32. h4 {[%emt 0:01:37]} Ke6 {[%emt 0:05:42]} 33. Re1+ {[%emt 0:00:41]} Kf7 {[%emt 0:00:04]} 34. Red1 {[%emt 0:00:04]} Re8 {[%emt 0:00:47]} 35. Bxc7 {[%emt 0:03:37]} Rxc7 {[%emt 0:00:06]} 36. Rxd5 $11 {[%emt 0:00:10][%mdl 4096] Endgame. KRR-KRR} Re2 {[%emt 0:00:16][%cal Oc7c2] [#] And now ...Rcc2! would win.} 37. R1d2 {[%emt 0:00:20]} Rc1+ {[%emt 0:00:40]} 38. Kh2 {[%emt 0:00:05]} Rxd2 {[%emt 0:00:16]} 39. Rxd2 {[%emt 0:00:02]} Ke6 {[%emt 0:00:30]} 40. Kg3 {[%emt 0:00:33]} Rc4 {[%emt 0:02:27]} 41. b3 {[%emt 0:16:36]} Ke5 $2 {[%emt 0:16:49][%mdl 40960] Weighted Error Value: White=0.04 (flawless) /Black=0.05 (flawless) .  Loses game:     	---       	Black=1      Inaccurate:     	White=1     	Black=1      OK:         	White=16    	Black=9      Best:        	White=3     	---        Strong:       	---       	Black=1     . An unexpected result.} 1/2-1/2

[Event "CIS Master Groups 2024"]
[Site "Vasto"]
[Date "2024.04.09"]
[Round "3.11"]
[White "Cappelletto, Joshuaede"]
[Black "Boraso, Alessio"]
[Result "1-0"]
[ECO "C13"]
[WhiteElo "2306"]
[BlackElo "2291"]
[Annotator "RC"]
[PlyCount "55"]
[EventDate "2024.04.07"]
[EventType "team-tourn"]
[EventCountry "ITA"]
[SourceTitle "playchess.com"]
[Source "ChessBase"]
[SourceQuality "1"]
[TimeControl "40/5400+30:900+30"]

1. e4 {[%emt 0:00:18]} e6 {[%emt 0:00:23]} 2. d4 {[%emt 0:00:06]} d5 {[%emt 0:00:01]} 3. Nc3 {[%emt 0:00:08]} Nf6 {[%emt 0:00:13]} 4. Bg5 {[%emt 0:00:06]} dxe4 {[%emt 0:01:07]} 5. Nxe4 {[%emt 0:00:27]} Be7 {[%emt 0:00:22]} 6. Bxf6 {[%emt 0:00:07]} gxf6 {[%emt 0:00:04]} 7. Nf3 {[%emt 0:00:59]} f5 {[%emt 0:00:30]} 8. Nc3 {[%emt 0:00:29]} a6 {[%emt 0:00:52]} 9. g3 {[%emt 0:15:19]} b5 {[%emt 0:00:26]} 10. Bg2 {[%emt 0:00:06]} Bb7 {[%emt 0:00:09]} 11. Qe2 {[%emt 0:03:50]} O-O {[%emt 0:01:40]} 12. Rd1 {[%emt 0:06:33]} b4 {[%emt 0:16:01]} 13. Na4 {[%emt 0:00:28]} Nd7 {[%emt 0:05:08]} 14. c4 {[%emt 0:07:12]} bxc3 {[%emt 0:02:39]} 15. bxc3 {[%emt 0:02:19]} Nb6 {[%emt 0:09:35]} 16. Nxb6 {[%emt 0:01:55]} cxb6 {[%emt 0:00:08]} 17. O-O {[%emt 0:00:10]} b5 {[%emt 0:01:47]} 18. d5 {[%emt 0:06:08]} Bxd5 {[%emt 0:04:10]} 19. Ne5 {[%emt 0:01:14]} Bf6 {[%emt 0:03:35]} 20. Bxd5 {[%emt 0:09:50]} exd5 {[%emt 0:00:17]} 21. Nd3 {[%emt 0:05:18]} Ra7 {[%emt 0:16:27]} 22. Nf4 {[%emt 0:02:31]} Rd7 {[%emt 0:01:39]} 23. Qd3 {[%emt 0:01:41]} d4 {[%emt 0:05:35]} 24. Qxf5 {[%emt 0:01:34]} Re8 {[%emt 0:01:35]} 25. cxd4 {[%emt 0:03:02]} Bxd4 {[%emt 0:05:18]} 26. Rd3 {[%emt 0:12:56]} Rd6 {[%emt 0:04:07]} 27. Rfd1 {[%emt 0:03:20]} Re7 {[%emt 0:08:55]} 28. Qg4+ {[%emt 0:01:14]} 1-0